Cogmind - Beta 17.1 @@@ ROGUE MODE // 2026.08.28 @ 16:13:09 Player: Finn Result: Destroyed by G-47 Trooper with Particle Gun Performance ------------- Evolutions (2) 1000 Regions Visited (3) 600 Robots Destroyed (70) 350 Value Destroyed (1894) 1894 Prototype IDs (2) 40 Alien Tech Used (0) 0 Bonus (0) 0 TOTAL SCORE: 3884 Bonus ------- None Cogmind --------- Core Integrity 0/550 Matter 292/450 Energy 100/100 System Corruption 0% Temperature Cool (9) Movement Treading (152) Location -8/Materials Parts ------- > --- POWER (2) -------- (None) > --- PROPULSION (2) --- Light Treads Advanced Treads > --- UTILITY (5) ------ Compact Matter Pod Terrain Scan Processor Improved Terrain Scan Processor Targeting Computer > --- WEAPON (2) ------- Flail > --- INVENTORY (5) ---- Carbon-fiber Leg Small Laser Peak State ------------ > --- POWER ------------ Light Ion Engine Heavy Ion Engine > --- PROPULSION ------- VSS Leg VSS Leg > --- UTILITY ---------- Terrain Scanner Terrain Scan Processor Targeting Computer Medium Armor Plating Hardened Medium Armor Plating > --- WEAPON ----------- Gauss Rifle Maul > --- INVENTORY -------- Improved Ion Engine Small Laser Rocket Launcher Flail [Rating: 25] Favorites ----------- Power Light Ion Engine Engine Light Ion Engine Propulsion Aluminum Leg Treads Advanced Treads Leg Aluminum Leg Utility Terrain Scan Processor Device Terrain Scanner Storage Compact Matter Pod Processor Terrain Scan Processor Protection Medium Armor Plating Weapon Small Laser Energy Gun Small Laser Energy Cannon Beam Cannon Ballistic Gun Gauss Rifle Launcher Improved Grenade Launcher Impact Weapon Maul Build | -11 -10 -9 -8 ------- Run | Yrd Mat Mat Mat Slots Evolved 4 | . . 2 2 Power 1 | . . . 1 Propulsion . | . . . . Utility 3 | . . 2 1 Weapon . | . . . . Parts Attached 42 | 5 6 19 12 Power 8 | 1 . 5 2 Engine 8 | 1 . 5 2 Core . | . . . . Reactor . | . . . . Propulsion 10 | 2 1 5 2 Treads 2 | . . . 2 Leg 8 | 2 1 5 . Wheel . | . . . . Hover . | . . . . Flight . | . . . . Utility 10 | . 2 4 4 Device 3 | . 1 2 . Storage 1 | . . . 1 Processor 3 | . 1 1 1 Hackware . | . . . . Protection 3 | . . 1 2 Artifact . | . . . . Weapon 14 | 2 3 5 4 Energy Gun 6 | 2 1 3 . Energy Cannon 1 | . 1 . . Ballistic Gun 3 | . 1 . 2 Ballistic Cannon . | . . . . Launcher 2 | . . . 2 Special Weapon . | . . . . Impact Weapon 2 | . . 2 . Slashing Weapon . | . . . . Piercing Weapon . | . . . . Special Melee Weapon . | . . . . Unidentified Prototypes 2 | . . 2 . Parts Lost 29 | . 4 11 14 Power 6 | . 1 1 4 Propulsion 7 | . 1 4 2 Utility 6 | . . 2 4 Weapon 10 | . 2 4 4 Highest Loss Streak 5 | . 3 5 4 To Critical Strikes . | . . . . Average Backups 3 | 1 3 3 3 Power . | . . 2 . Propulsion . | . . . . Utility . | . . . . Weapon 1 | . 1 . 2 Tool/Special . | . . . . Unused Backups 1 | . . . 1 Power . | . . . . Propulsion 1 | . . . 1 Utility . | . . . . Weapon . | . . . . Tool/Special . | . . . . Average Slot Usage (%) 83 | . 89 84 75 Engine 10 | . 11 9 11 Treads 1 | . . . 3 Leg 17 | . 25 16 8 Device 9 | . 11 12 2 Storage 1 | . . . 5 Processor 17 | . 11 21 19 Protection 3 | . . 5 6 Energy Gun 11 | . 21 10 . Energy Cannon 1 | . 3 1 . Ballistic Gun 3 | . 2 . 7 Impact Weapon 4 | . . 5 9 Peak Build Rating 25 | 5 8 18 25 Average Rating 12 | 4 7 12 19 On Entrance 7 | . 5 6 18 Avg Prop Armor Cover (%) . | . . . . Naked Turns . | . . . . Heaviest Build 34 | 5 8 20 34 Greatest Support 42 | 20 20 24 42 Greatest Overweight (x) 4 | . . 3 4 Average Overweight (x) . | . . . 1 Largest Inventory Capacity 5 | 5 5 5 5 Average Capacity 5 | 5 5 5 5 Most Carried 5 | 4 5 5 5 Average Carried 3 | 1 3 3 3 Final Capacity 5 | 5 5 5 5 Final Carried 5 | 1 3 5 2 Class Distribution -------------------- 77% | Mutant 17% | Scavenger-Mutant 5% | Skirmisher Dominant Class ---------------- Mutant | -10/Materials Scavenger-Mutant | -9/Materials Mutant | -8/Materials Resources | -11 -10 -9 -8 ----------- Run | Yrd Mat Mat Mat Matter Collected 986 | 162 179 160 485 Remotely . | . . . . Salvage Created 2379 | . 716 745 918 Parts 140 | . 43 56 41 Haulers Intercepted 1 | . . . 1 Recyclers Shooed . | . . . . Parts Field Recycled . | . . . . Retrieved Matter . | . . . . Parts Self-Destructed . | . . . . Prevented . | . . . . Parts Restored . | . . . . Kills | -11 -10 -9 -8 ------- Run | Yrd Mat Mat Mat Combat Hostiles Destroyed 48 | . 14 18 16 Melee 3 | . . . 3 Guns 32 | . 11 17 4 Cannons 4 | . 3 1 . AOE 3 | . . . 3 Classes Destroyed 9 | . 4 3 2 Worker 11 | . 3 1 7 Builder 4 | . 1 1 2 Hauler 1 | . . . 1 Recycler 1 | . . 1 . Watcher 5 | . 2 3 . Swarmer 7 | . . 7 . Grunt 34 | . 14 8 12 Sentry 6 | . . 3 3 Hunter 1 | . . . 1 Best Kill Streak 7 | . 4 7 7 Combat Bots Only 6 | . 2 6 4 Max Kills in Single Turn 2 | . 2 1 2 Gunslinging . | . . . . Exploded 1 | . . . 1 Melee 1 | . . . 1 Uniques/NPCs Destroyed . | . . . . Combat | -11 -10 -9 -8 -------- Run | Yrd Mat Mat Mat Hostile Shots Fired 443 | . 91 169 183 Missed 114 | . 21 53 40 Hits 329 | . 70 116 143 Projectile 329 | . 70 116 143 Critical Strikes 5 | . 1 2 2 Damage Taken 4248 | . 831 1183 2234 Core 1170 | . 233 376 561 Absorbed by Shields . | . . . . Core Remaining (%) 37 | 100 6 6 . Volleys Fired 248 | . 72 107 69 Largest 2 | . 2 2 1 Hottest 110 | . 100 110 36 Shots Fired 316 | . 135 112 69 Gun 282 | . 113 107 62 Cannon 27 | . 22 5 . Launcher 7 | . . . 7 Special . | . . . . Kinetic 74 | . 12 . 62 Thermal 225 | . 123 102 . Explosive 7 | . . . 7 Electromagnetic 10 | . . 10 . Robot Hit Streak 16 | . 13 16 10 Robot Miss Streak 7 | . 6 7 5 Penetration Max 1 | . . . 1 Secondary Targets . | . . . . Shots Hit Robots 231 | . 80 74 77 Core Hits 105 | . 38 36 31 Critical Kills . | . . . . Critical Parts Destroyed 9 | . . 1 8 Critical Strikes 9 | . . 1 8 Destroy 1 | . . . 1 Smash 8 | . . 1 7 Melee Attacks 43 | . . 1 42 Impact 43 | . . 1 42 Slashing . | . . . . Piercing . | . . . . Sneak Attacks 3 | . . 1 2 Combat Hostiles . | . . . . Follow-up Attacks . | . . . . Damage Inflicted 4689 | . 1063 986 2640 Guns 2503 | . 831 813 859 Cannons 302 | . 232 70 . Explosions 459 | . . . 459 Melee 1422 | . . 100 1322 Ramming 3 | . . 3 . Kinetic 959 | . 100 . 859 Thermal 1774 | . 963 811 . Explosive 459 | . . . 459 Electromagnetic 72 | . . 72 . Impact 1422 | . . 100 1322 Slashing . | . . . . Piercing . | . . . . Highest Corruption 2 | . . 2 . Average Corruption 1 | . . 1 . Corruption Purged . | . . . . Corruption Blocked . | . . . . Overload Shots . | . . . . Overflow Damage 480 | . . 100 380 Projectiles . | . . . . Explosions . | . . . . Melee 480 | . . 100 380 Knockbacks 5 | . . . 5 Impact 5 | . . . 5 Kinetic . | . . . . Secondary . | . . . . Self-Inflicted Damage 60 | . . . 60 Shots 2 | . . . 2 Rammed . | . . . . Targets Rammed 3 | . 1 2 . Kicked 3 | . 1 2 . Crushed . | . . . . Highest Temperature 336 | . 336 174 79 Average Temperature 68 | . 103 31 20 Received Heat Transfer 1857 | . 477 399 981 Effects 2 | . 2 . . Energy Bleed 2 | . 2 . . Siege Activations . | . . . . Martial Activations . | . . . . Shielding Activations . | . . . . Robots Disrupted . | . . . . Combat Hostiles . | . . . . Robots Corrupted 7 | . . . 7 Combat Hostiles 6 | . . . 6 Parts Fried 6 | . . 1 5 Impact Corruptions 16 | . . 1 15 Robots Melted . | . . . . Combat Hostiles . | . . . . Parts Melted 7 | . 4 3 . Heat Transferred 4109 | . 2286 1823 . Parts Sabotaged . | . . . . Parts Stolen . | . . . . Parts Stripped . | . . . . Power Chain Reactions . | . . . . Alert | -11 -10 -9 -8 ------- Run | Yrd Mat Mat Mat Maximum Alert Level . | . . . . Low Security (%) 100 | 100 100 100 100 Level 1 . | . . . . Level 2 . | . . . . Level 3 . | . . . . Level 4 . | . . . . Level 5 . | . . . . High Security . | . . . . Max Security . | . . . . Peak Influence 171 | . 90 171 145 Initial 29 | . . 29 1 Average 46 | . 31 55 56 Influence Increases 1487 | . 399 518 570 Destroy 0b10 Robot/C 960 | . 280 360 320 Destroy 0b10 Robot/NC 110 | . 30 30 50 Destroy Leader 232 | . 74 76 82 Successful Hack 10 | . . 7 3 Disable Machine 30 | . . . 30 Destroy Structure 40 | . . . 40 Lose Combat Pursuer 105 | . 15 45 45 Influence Decreases 1388 | . 327 584 477 Entered New Map 48 | . . 43 5 Time Decay 935 | . 287 312 336 Lost Part 266 | . 40 90 136 Purge Threat 139 | . . 139 . Squads Dispatched 11 | . 4 2 5 Investigation 1 | . 1 . . Extermination . | . . . . Reinforcement 10 | . 3 2 5 Assault . | . . . . Garrison . | . . . . Intercept . | . . . . Searches Triggered . | . . . . Construction Impeded 1 | . . . 1 Haulers Reinforced . | . . . . Active Scanning Responses . | . . . . Cargo Convoy Interrupts . | . . . . Stealth | -11 -10 -9 -8 --------- Run | Yrd Mat Mat Mat Distress Signals 10 | . 2 2 6 Communications Jammed . | . . . . Distress Signals . | . . . . Times Spotted 87 | . 29 27 31 Peak Tracking Total 8 | . 5 6 8 Tactical Retreats 5 | . 1 2 2 Traps | -11 -10 -9 -8 ------- Run | Yrd Mat Mat Mat Traps Triggered 3 | . 1 2 . Indirectly . | . . . . Trap Hack Attempts . | . . . . Triggered . | . . . . Disarmed . | . . . . Reprogrammed . | . . . . Reused . | . . . . Traps Extracted . | . . . . Installed . | . . . . Triggered . | . . . . Machines | -11 -10 -9 -8 ---------- Run | Yrd Mat Mat Mat Machines Disabled 2 | . . . 2 Max in Single Turn 1 | . . . 1 Machines Repaired . | . . . . Machines Dismantled . | . . . . Machines Sabotaged . | . . . . Overloaded Fab Kills . | . . . . Hacking | -11 -10 -9 -8 --------- Run | Yrd Mat Mat Mat Machines Accessed 7 | . . 4 3 Terminals 7 | . . 4 3 Fabricators . | . . . . Repair Stations . | . . . . Recycling Units . | . . . . Scanalyzers . | . . . . Garrison Access . | . . . . Total Hacks 9 | . . 5 4 Successful 6 | . . 3 3 Failed 3 | . . 2 1 Catastrophic . | . . . . Database Lockouts . | . . . . Manual . | . . . . Terminals 9 | . . 5 4 Fabricators . | . . . . Repair Stations . | . . . . Recycling Units . | . . . . Scanalyzers . | . . . . Garrison Access . | . . . . Terminal Hacks 6 | . . 3 3 Record 4 | . . 1 3 Unreport Threat 1 | . . 1 . Recall Investigation 1 | . . 1 . Fabricator Hacks . | . . . . Repair Station Hacks . | . . . . Recycling Unit Hacks . | . . . . Scanalyzer . | . . . . Garrison Access Hacks . | . . . . Unauthorized Hacks . | . . . . Terminals . | . . . . Fabricators . | . . . . Repair Stations . | . . . . Recycling Units . | . . . . Scanalyzers . | . . . . Garrison Access . | . . . . Data Cores Recovered . | . . . . Used . | . . . . Hacking Detections 3 | . . 1 2 Full Trace Events . | . . . . Feedback Events . | . . . . Feedback Blocked . | . . . . Robot Schematics Acquired . | . . . . Robots Built . | . . . . Authchips . | . . . . Time . | . . . . Total Robot Build Rating . | . . . . Part Schematics Acquired . | . . . . Parts Built . | . . . . Authchips . | . . . . Time . | . . . . Total Part Build Rating . | . . . . Part Studies Acquired . | . . . . Parts Repaired . | . . . . Time . | . . . . Parts Recycled . | . . . . Recycled Matter . | . . . . Retrieved Matter . | . . . . Retrieved Components . | . . . . Parts Scanalyzed . | . . . . Part Schematics Acquired . | . . . . Parts Damaged . | . . . . Bothacking | -11 -10 -9 -8 ------------ Run | Yrd Mat Mat Mat Used RIF Installer . | . . . . Robots Hacked . | . . . . Non-combat . | . . . . Combat . | . . . . Robot Hacks Applied . | . . . . Relay Couplers Released . | . . . . Fabnet Peak Effective % . | . . . . Robots Rewired . | . . . . Allies Hacked . | . . . . Hacks Repelled . | . . . . Allies | -11 -10 -9 -8 -------- Run | Yrd Mat Mat Mat Total Allies . | . . . . Largest Group . | . . . . Highest-Rated Group . | . . . . Highest-Rated Ally . | . . . . Total Orders . | . . . . Ally Attacks . | . . . . Total Damage . | . . . . Kills . | . . . . Allies Corrupted . | . . . . Allies Melted . | . . . . Intel | -11 -10 -9 -8 ------- Run | Yrd Mat Mat Mat Active Infowar (turns) 2329 | . 985 1077 267 Terrain 2289 | . 985 1037 267 Traps 183 | . . 183 . Robot Analysis Total . | . . . . Derelict Logs Recovered . | . . . . Drone Launches . | . . . . Drone Recoveries . | . . . . Exploration | -11 -10 -9 -8 ------------- Run | Yrd Mat Mat Mat Turns Passed 3318 | 95 1146 1098 979 Spaces Moved 1528 | 41 642 497 348 Core 114 | 14 . 22 78 Treads 103 | . . . 103 Legs 1311 | 27 642 475 167 Wheels . | . . . . Hover . | . . . . Flight . | . . . . Fastest Speed 50 | 50 120 50 90 Average Speed 133 | 96 120 119 183 Slowest Speed 250 | 120 120 200 250 Overloaded Moves . | . . . . Propulsion Burnouts . | . . . . Robots Hopped . | . . . . Potential Cave-ins . | . . . . Cave-ins Triggered . | . . . . Exploration Rate (%) 38 | 4 70 44 35 Regions Visited 3 Branch Regions . Pre-discovered Areas . | . . . . Known Exits Taken . | . . . . Unknown Exits Taken 3 | 1 1 1 . Scrap Searched . | . . . . Spaces Dug . | . . . . Terrain Destroyed 60 | . . . 60 Melee . | . . . . Projectile 1 | . . . 1 AOE 57 | . . . 57 Terrain Rammed . | . . . . Walls Destroyed . | . . . . Machines Disabled . | . . . . Actions | -11 -10 -9 -8 --------- Run | Yrd Mat Mat Mat Total 2399 | 96 881 881 541 Wait 486 | 45 155 232 54 Move 1525 | 40 641 496 348 Hop . | . . . . Pick Up 38 | 6 6 18 8 Fast Attach 5 | . . 2 3 Attach 33 | 5 4 14 10 Detach . | . . . . Swap 14 | . 2 6 6 Drop 5 | . . 3 2 Fire 248 | . 72 107 69 Melee 42 | . . 1 41 Ram . | . . . . Kick 3 | . 1 2 . Crush . | . . . . Escape Stasis . | . . . . Rewire . | . . . . Trap . | . . . . Miscellaneous . | . . . . Route ------- -11/Scrapyard -10/Materials (discovered 4 exits: *Mat x2 / [*Min] / [*Sub]) -9/Materials (discovered 2 exits: *Mat x2) -8/Materials History --------- Turn | Location | Event 6 | -11/Scrapyard | Discovered new exit (range 15) 96 | -11/Scrapyard | Entered Materials 317 | -10/Materials | Build established: Mutant 381 | -10/Materials | Discovered new exit (range 16) 667 | -10/Materials | Discovered new exit (range 12) 768 | -10/Materials | Discovered new exit (range 15) 934 | -10/Materials | Core integrity fell below 50% 1004 | -10/Materials | Core integrity fell below 20% 1046 | -10/Materials | Lost 3 parts (1p1n1w) 1196 | -10/Materials | Derelicts attacked the area 1224 | -10/Materials | Discovered new exit (range 12) 1242 | -10/Materials | Entered another Materials area 1242 | -9/Materials | Evolved 2 slots: Utility x2 1452 | -9/Materials | Lost 5 parts (1n1u3w) 1676 | -9/Materials | Core integrity fell below 50% 1734 | -9/Materials | Core integrity fell below 20% 1769 | -9/Materials | Discovered new exit (range 9) 2003 | -9/Materials | Build established: Scavenger-Mutant 2176 | -9/Materials | Discovered new exit (range 16) 2340 | -9/Materials | Entered another Materials area 2340 | -8/Materials | Evolved 2 slots: Power x1, Utility x1 2365 | -8/Materials | Build established: Mutant 2745 | -8/Materials | Core integrity fell below 50% 2756 | -8/Materials | Lost 4 parts (1n2u1w) 3189 | -8/Materials | Core integrity fell below 20% 3319 | -8/Materials | Destroyed by G-47 Trooper with Particle Gun Last Messages --------------- 03288_ U-05 Engineer lays Concrete. 03291_ W-25 Informer sends out distress signal. 03292_ U-05 Engineer lays Concrete. 03292_ G-47 Trooper destroyed. 03293_ ALERT: Construction progress impeded, dispatching reinforcements to local area. 03295_ Imp. Grenade Launcher destroyed. 03300_ U-05 Engineer lays Concrete. 03300_ Gauss Rifle destroyed. 03301_ U-05 Engineer lays Concrete. 03304_ Maul destroyed. 03305_ U-05 Engineer lays Concrete. 03310_ Imp. Ion Engine destroyed. 03311_ U-05 Engineer lays Concrete. 03313_ Critical hit (Burn: +37). 03314_ U-05 Engineer lays Concrete. 03318_ Destroyed Heat Sink. 03318_ Y-45 Defender system corrupted by crushing effect. 03319_ U-05 Engineer lays Concrete. Map ----- +----------------------------------------------------+ | ??????????????????????# """ """ #??? | | ??????????????????????# #??? | | ??????????????????????######+#######??? | | ???????????????????????# # #??? | | ???????????????????????# # "" #??? | | ???????????????????????# + "" #??? | | ??????????????#######??# # "T #??? | | ??????????????# #### # "" #??? | | ??????????????# # "" #??? | | ??????????????# # #### | | ??????????????# # ## T | | ??????????????# ######## ##] ## | | ??????????????## ######### ######## | | ???????????????# # ! # #??????# | | ???????????????# +=* ! # #??????# | | ???????????????# =#= !! # #??????# | | ?????????####### ######### ###????#= | | ?????????# ####### #######+ | | ?????????# % | | ?????????# ####### | | ???#?????# #####?????# | | ???# ##### #?##??????# #######+ | | ???# ## ########## ###?# | | ?### # ] ] ]#?# ##### | | ?#"" T Y #?# + | | ?#"T @# | #?#### ## | | ?#"" #?? [ #????# ## ! | | ??## g###????######????# ## | | ???# #????????????????# ####+## | | ???# uu[ ?????????????# #?????? | | ? !/ !! ????????? #### ## | | # /= !! #?????# | | # /= ########?????# ## | | # ##??????????????? ????# | | # #???????????????? ????# | | # #???????????????? "????# | | ## #???????????????? "????# | | ?## !% #???????????????? ?????# | | ??## ##+#???????????????? ?????# | | ???# ???????????????????? ? [ + | | ???#### ?????????????????????? #### | | ??????# ????????????????????????????? | | ??????? ?????????????????????????????? | | ??????????????????????????????????????? | | ??????????????????????????????????????? | | ??????????????????????????????????????? | | ??????????????????????????????????????? | | ??????????????????????????????????????? | | ??????????????????????????????????????? | | ??????????????????????????????????????? | +----------------------------------------------------+ Best States ------------- Heat Dissipation 31 Energy Generation 21 Energy Capacity 445 Matter Stores 374 Matter Capacity 450 Sight Range 16 Terrain Scan Range 14 Terrain Scan Density 185 Armor Coverage 450 Evasion (%) 57 Targeting Accuracy 5 Recoil Reduction 2 Item Schematics ----------------- None Robot Schematics ------------------ None Fabricated ------------ Nothing Repaired ---------- Nothing Studied --------- None Alien Tech Used ----------------- None Achievements -------------- Sprinter Challenges ------------ None Game ------ Seed HeavyBackdoorField Manual? 0 Play Time 00:28:01 Cumulative 15.5 hours Start 2026.08.27 @ 13:12:37 End 2026.08.28 @ 16:13:09 Sessions 2 Manual Loads 0 Difficulty Rogue Special Mode None Game No. 29 Rogue 12 Adventurer 15 Explorer 2 Win Type - Total 0 Types 0/0/0/0/0/0/0/0/0/0 Lore% 11 Gallery% 17 Achievement% 12 Wizard Run 0 Options --------- Layout 1 ASCII 0 Keyboard 0 Movement Mouse Keybinds 0 Fullscreen 1 Font 24/Smallcaps Map View 50x35 Zoom Use 0% Tactical HUD 1 Map Filters NONE Filters NONE Steam 1 RUN: cf10c63d-bb1c-4d31-9c9e-b941b87e8538